fUSD/lending_fUSD_20250720
["ID","MTS","AMOUNT","RATE_DAILY","PERIOD"]
[373485473,1753020642275,-966.63,0.00019178,2]
[373485476,1753020642284,-966.63,0.00019178,2]
[373485478,1753020642294,-776.2,0.00019178,2]
[373485479,1753020642303,-484.23665938,0.00019178,2]
[373485482,1753020642313,-789.26,0.00019178,2]
[373485484,1753020642322,-480.0,0.00019178,2]
[373485486,1753020642331,-672.31,0.00019178,2]
[373485487,1753020642342,-249.25341,0.00019178,2]
[373485490,1753020642353,-831.69,0.00019178,2]
[373485492,1753020642364,-480.0,0.00019178,2]
[373485494,1753020642374,-480.0,0.00019178,2]
[373485496,1753020642383,-480.0,0.00019178,2]
[373485498,1753020642392,-574.26,0.00019178,2]
[373485500,1753020642401,-480.0,0.00019178,2]
[373485502,1753020642411,-480.0,0.00019178,2]
[373485504,1753020642420,-480.0,0.00019178,2]
[373485506,1753020642430,-1899.17,0.00019178,2]
[373485508,1753020642439,-480.0,0.00019178,2]
[373485510,1753020642448,-480.0,0.00019178,2]
[373485512,1753020642457,-480.98,0.00019178,2]
[373485513,1753020642466,-480.0,0.00019178,2]
[373485516,1753020642475,-480.0,0.00019178,2]
[373485517,1753020642485,-1128.91,0.00019178,2]
[373485519,1753020642494,-799.0,0.00019178,2]
[373485521,1753020642503,-480.0,0.00019178,2]
[373485523,1753020642513,-480.0,0.00019178,2]
[373485525,1753020642522,-480.0,0.00019178,2]
[373485527,1753020642531,-480.0,0.00019178,2]
[373485529,1753020642541,-480.0,0.00019178,2]
[373485531,1753020642550,-1496.38,0.00019178,2]
[373485533,1753020642559,-480.0,0.00019178,2]
[373485535,1753020642568,-480.0,0.00019178,2]
[373485537,1753020642578,-480.0,0.00019178,2]
[373485539,1753020642587,-480.0,0.00019178,2]
[373485541,1753020642597,-1278.81,0.00019178,2]
[373485543,1753020642607,-1997.91,0.00019178,2]
[373485545,1753020642616,-480.0,0.00019178,2]
[373485548,1753020642625,-480.0,0.00019178,2]
[373485549,1753020642634,-480.0,0.00019178,2]
[373485551,1753020642643,-480.0,0.00019178,2]
[373485553,1753020642653,-496.86230838,0.00019178,2]
[373485555,1753020642662,-480.0,0.00019178,2]
[373485557,1753020642671,-480.0,0.00019178,2]
[373485559,1753020642680,-480.0,0.00019178,2]
[373485561,1753020642689,-480.0,0.00019178,2]
[373485563,1753020642698,-480.0,0.00019178,2]
[373485565,1753020642708,-318.57173,0.00019178,2]
[373485567,1753020642717,-309.908604,0.00019178,2]
[373485570,1753020642727,-500.0,0.00019178,2]
[373485571,1753020642737,-480.0,0.00019178,2]
[373485573,1753020642750,-4223.63,0.00019178,2]
[373485575,1753020642760,-480.0,0.00019178,2]
[373485577,1753020642769,-1393.5,0.00019178,2]
[373485579,1753020642779,-480.0,0.00019178,2]
[373485582,1753020642790,-480.0,0.00019178,2]
[373485584,1753020642799,-380.0,0.00019178,2]
[373485586,1753020642809,-1498.93,0.00019178,2]
[373485587,1753020642818,-587.14,0.00019178,2]
[373485590,1753020642830,-922.88,0.00019178,2]
[373485591,1753020642840,-480.0,0.00019178,2]
[373485593,1753020642849,-521.4,0.00019178,2]
[373485597,1753020642859,-532.69,0.00019178,2]
[373485600,1753020642869,-480.0,0.00019178,2]
[373485603,1753020642878,-738.91,0.00019178,2]
[373485606,1753020642888,-480.0,0.00019178,2]
[373485609,1753020642897,-750.14,0.00019178,2]
[373485612,1753020642907,-480.0,0.00019178,2]
[373485615,1753020642917,-729.52,0.00019178,2]
[373485618,1753020642927,-480.0,0.00019178,2]
[373485620,1753020642936,-480.0,0.00019178,2]
[373485622,1753020642945,-480.0,0.00019178,2]
[373485624,1753020642955,-480.0,0.00019178,2]
[373485626,1753020642964,-1147.7,0.00019178,2]
[373485628,1753020642973,-181.790561,0.00019178,2]
[373485630,1753020642982,-691.15,0.00019178,2]
[373485632,1753020642992,-192.24150786,0.00019178,2]
[373485634,1753020643001,-480.0,0.00019178,2]
[373485636,1753020643011,-480.0,0.00019178,2]
[373485638,1753020643022,-503.07,0.00019178,2]
[373485640,1753020643032,-865.25,0.00019178,2]
[373485641,1753020643043,-1949.15,0.00019178,2]
[373485644,1753020643054,-480.0,0.00019178,2]
[373485646,1753020643063,-1100.46,0.00019178,2]
[373485647,1753020643073,-480.0,0.00019178,2]
[373485650,1753020643083,-496.1,0.00019178,2]
[373485652,1753020643093,-480.0,0.00019178,2]
[373485654,1753020643102,-1346.25,0.00019178,2]
[373485656,1753020643112,-921.39,0.00019178,2]
[373485658,1753020643122,-480.0,0.00019178,2]
[373485660,1753020643132,-480.0,0.00019178,2]
[373485661,1753020643141,-480.0,0.00019178,2]
[373485663,1753020643151,-480.0,0.00019178,2]
[373485666,1753020643161,-7378.34,0.00019178,2]
[373485668,1753020643170,-480.0,0.00019178,2]
[373485670,1753020643180,-480.0,0.00019178,2]
[373485672,1753020643189,-1045.12,0.00019178,2]
[373485674,1753020643199,-480.0,0.00019178,2]
[373485676,1753020643208,-480.0,0.00019178,2]
[373485678,1753020643217,-480.0,0.00019178,2]
[373485680,1753020643227,-480.0,0.00019178,2]
[373485682,1753020643236,-480.0,0.00019178,2]
[373485684,1753020643246,-480.0,0.00019178,2]
[373485686,1753020643255,-480.0,0.00019178,2]
[373485688,1753020643265,-480.0,0.00019178,2]
[373485690,1753020643275,-878.11,0.00019178,2]
[373485692,1753020643285,-2325.27,0.00019178,2]
[373485694,1753020643294,-480.0,0.00019178,2]
[373485696,1753020643303,-480.0,0.00019178,2]
[373485698,1753020643313,-480.0,0.00019178,2]
[373485700,1753020643323,-480.0,0.00019178,2]
[373485702,1753020643332,-420.0,0.00019178,2]
[373485704,1753020643342,-575.64,0.00019178,2]
[373485706,1753020643351,-1128.64,0.00019178,2]
[373485708,1753020643360,-480.0,0.00019178,2]
[373485710,1753020643369,-155.658073,0.00019178,2]
[373485712,1753020643379,-156.714406,0.00019178,2]
[373485714,1753020643388,-480.0,0.00019178,2]
[373485716,1753020643398,-480.0,0.00019178,2]
[373485718,1753020643407,-480.0,0.00019178,2]
[373485720,1753020643417,-480.0,0.00019178,2]
[373485722,1753020643427,-259.58137997,0.00019178,2]
[373485724,1753020643436,-500.0,0.00019178,2]
[373485726,1753020643445,-1690.84,0.00019178,2]
[373485728,1753020643454,-4820.48,0.00019178,2]
[373485730,1753020643464,-480.0,0.00019178,2]
[373485732,1753020643473,-983.38,0.00019178,2]
[373485734,1753020643483,-480.0,0.00019178,2]
[373485736,1753020643492,-906.07,0.00019178,2]
[373485738,1753020643502,-480.0,0.00019178,2]
[373485740,1753020643511,-2550.36,0.00019178,2]
[373485742,1753020643520,-480.0,0.00019178,2]
[373485744,1753020643530,-865.83,0.00019178,2]
[373485746,1753020643539,-480.0,0.00019178,2]
[373485748,1753020643551,-1022.36,0.00019178,2]
[373485750,1753020643562,-480.0,0.00019178,2]
[373485752,1753020643572,-714.37,0.00019178,2]
[373485755,1753020643583,-779.69,0.00019178,2]
[373485757,1753020643593,-4242.68,0.00019178,2]
[373485759,1753020643602,-480.0,0.00019178,2]
[373485761,1753020643611,-686.78,0.00019178,2]
[373485763,1753020643620,-480.0,0.00019178,2]
[373485765,1753020643630,-480.0,0.00019178,2]
[373485767,1753020643640,-480.0,0.00019178,2]
[373485769,1753020643649,-1367.26,0.00019178,2]
[373485771,1753020643659,-480.0,0.00019178,2]
[373485773,1753020643669,-480.0,0.00019178,2]
[373485775,1753020643679,-480.0,0.00019178,2]
[373485777,1753020643688,-966.6,0.00019178,2]
[373485779,1753020643698,-480.0,0.00019178,2]
[373485781,1753020643708,-3034.11,0.00019178,2]
[373485783,1753020643718,-480.0,0.00019178,2]
[373485785,1753020643734,-988.1,0.00019178,2]
[373485787,1753020643744,-794.36,0.00019178,2]
[373485789,1753020643756,-480.0,0.00019178,2]
[373485791,1753020643765,-480.0,0.00019178,2]
[373485793,1753020643775,-480.0,0.00019178,2]
[373485795,1753020643785,-480.0,0.00019178,2]
[373485796,1753020643795,-480.0,0.00019178,2]
[373485797,1753020643804,-480.0,0.00019178,2]
[373485798,1753020643814,-1933.56,0.00019178,2]
[373485799,1753020643823,-1097.58,0.00019178,2]
[373485800,1753020643834,-1383.8,0.00019178,2]
[373485801,1753020643843,-480.0,0.00019178,2]
[373485802,1753020643853,-769.42,0.00019178,2]
[373485803,1753020643862,-480.0,0.00019178,2]
[373485804,1753020643871,-2020.24,0.00019178,2]
[373485806,1753020643881,-480.0,0.00019178,2]
[373485808,1753020643890,-860.27,0.00019178,2]
[373485810,1753020643899,-480.0,0.00019178,2]
[373485812,1753020643909,-1513.28,0.00019178,2]
[373485814,1753020643919,-696.02,0.00019178,2]
[373485816,1753020643929,-480.0,0.00019178,2]
[373485818,1753020643938,-966.15,0.00019178,2]
[373485820,1753020643948,-156.714397,0.00019178,2]
[373485822,1753020643957,-480.0,0.00019178,2]
[373485824,1753020643966,-380.0,0.00019178,2]
[373485826,1753020643976,-480.0,0.00019178,2]
[373485828,1753020643986,-1707.04,0.00019178,2]
[373485830,1753020643995,-155.658053,0.00019178,2]
[373485832,1753020644005,-480.0,0.00019178,2]
[373485834,1753020644014,-480.0,0.00019178,2]
[373485836,1753020644024,-480.0,0.00019178,2]
[373485838,1753020644034,-4956.82,0.00019178,2]
[373485840,1753020644044,-480.0,0.00019178,2]
[373485842,1753020644053,-480.0,0.00019178,2]
[373485844,1753020644063,-1446.44,0.00019178,2]
[373485846,1753020644075,-400.0,0.00019178,2]
[373485848,1753020644084,-1620.98,0.00019178,2]
[373485850,1753020644094,-480.0,0.00019178,2]
[373485852,1753020644103,-448.66668237,0.00019178,2]
[373485854,1753020644113,-884.41,0.00019178,2]
[373485856,1753020644122,-480.0,0.00019178,2]
[373485858,1753020644131,-716.43,0.00019178,2]
[373485860,1753020644141,-480.0,0.00019178,2]
[373485862,1753020644151,-480.0,0.00019178,2]
[373485864,1753020644160,-480.0,0.00019178,2]
[373485866,1753020644170,-480.0,0.00019178,2]
[373485868,1753020644180,-861.89,0.00019178,2]
[373485870,1753020644189,-973.04,0.00019178,2]
[373485872,1753020644199,-480.0,0.00019178,2]
[373485874,1753020644208,-889.76,0.00019178,2]
[373485876,1753020644218,-480.0,0.00019178,2]
[373485878,1753020644227,-1440.78,0.00019178,2]
[373485880,1753020644236,-1621.77,0.00019178,2]
[373485882,1753020644246,-480.0,0.00019178,2]
[373485884,1753020644256,-181.79056,0.00019178,2]
[373485886,1753020644265,-480.0,0.00019178,2]
[373485888,1753020644275,-1484.6,0.00019178,2]
[373485890,1753020644285,-480.0,0.00019178,2]
[373485892,1753020644294,-480.0,0.00019178,2]
[373485894,1753020644304,-3199.02,0.00019178,2]
[373485896,1753020644313,-480.0,0.00019178,2]
[373485898,1753020644323,-480.0,0.00019178,2]
[373485900,1753020644332,-1804.73,0.00019178,2]
[373485902,1753020644341,-480.0,0.00019178,2]
[373485904,1753020644351,-480.0,0.00019178,2]
[373485906,1753020644360,-1689.95,0.00019178,2]
[373485942,1753020644680,-996.22,0.00019178,2]
[373485944,1753020644691,-480.0,0.00019178,2]
[373485946,1753020644700,-1511.39,0.00019178,2]
[373485948,1753020644710,-498.92,0.00019178,2]
[373485950,1753020644719,-480.0,0.00019178,2]
[373485952,1753020644728,-480.0,0.00019178,2]
[373485954,1753020644737,-480.0,0.00019178,2]
[373485956,1753020644750,-480.0,0.00019178,2]
[373485958,1753020644759,-3482.0,0.00019178,2]
[373485960,1753020644769,-28264.94286282,0.00019178,2]
[373485962,1753020644778,-3352.0,0.00019192,2]
[373485964,1753020644787,-807.0,0.00019192,2]
[373485966,1753020644798,-1268.0,0.00019192,2]
[373485968,1753020644808,-857.75326594,0.00019213,2]
[373485970,1753020644819,-511.0,0.00019234,2]
[373485972,1753020644828,-300.0,0.0001925,2]
[373485974,1753020644837,-2500.0,0.0001925,2]
[373485976,1753020644847,-155.11476881,0.00019277,2]
[373485978,1753020644857,-1084.38419266,0.00019286,5]
[373485980,1753020644866,-151.0,0.00019287,2]
[373485982,1753020644876,-480.0,0.00019287,2]
[373485984,1753020644885,-480.0,0.00019287,2]
[373485986,1753020644894,-480.0,0.00019287,2]
[373485988,1753020644904,-480.0,0.00019287,2]
[373485990,1753020644914,-480.0,0.00019287,2]
[373485992,1753020644924,-480.0,0.00019287,2]
[373485994,1753020644933,-480.0,0.00019287,2]
[373485996,1753020644943,-480.0,0.00019287,2]
[373485998,1753020644952,-480.0,0.00019287,2]
[373486000,1753020644962,-480.0,0.00019287,2]
[373486002,1753020644971,-480.0,0.00019287,2]
[373486004,1753020644980,-480.0,0.00019287,2]
[373486006,1753020644990,-480.0,0.00019287,2]
[373486008,1753020644999,-480.0,0.00019287,2]
[373486010,1753020645008,-480.0,0.00019287,2]
[373486012,1753020645018,-480.0,0.00019287,2]
[373486014,1753020645027,-480.0,0.00019287,2]
[373486016,1753020645037,-480.0,0.00019287,2]
[373486018,1753020645046,-480.0,0.00019287,2]
[373486020,1753020645056,-480.0,0.00019287,2]
[373486022,1753020645065,-480.0,0.00019287,2]
[373486024,1753020645074,-480.0,0.00019287,2]
[373486026,1753020645083,-480.0,0.00019287,2]
[373486028,1753020645093,-480.0,0.00019287,2]
[373486030,1753020645102,-480.0,0.00019287,2]
[373486032,1753020645112,-480.0,0.00019287,2]
[373486034,1753020645122,-480.0,0.00019287,2]
[373486036,1753020645132,-480.0,0.00019287,2]
[373486038,1753020645141,-480.0,0.00019287,2]
[373486040,1753020645151,-327.89650653,0.00019287,2]
[373486042,1753020645162,-480.0,0.00019287,2]
[373486044,1753020645171,-480.0,0.00019287,2]
[373486046,1753020645181,-480.0,0.00019287,2]
[373486048,1753020645190,-480.0,0.00019287,2]
[373486050,1753020645200,-480.0,0.00019287,2]
[373486052,1753020645209,-480.0,0.00019287,2]
[373486054,1753020645219,-480.0,0.00019287,2]
[373486057,1753020645228,-480.0,0.00019287,2]
[373486059,1753020645238,-480.0,0.00019287,2]
[373486061,1753020645247,-480.0,0.00019287,2]
[373486063,1753020645257,-220.50326355,0.00019287,2]
[373486065,1753020645267,-480.0,0.00019287,2]
[373486067,1753020645277,-480.0,0.00019287,2]
[373486069,1753020645286,-480.0,0.00019287,2]
[373486071,1753020645296,-185.73385685,0.00019287,2]
[373486073,1753020645305,-480.0,0.00019287,2]
[373486075,1753020645315,-480.0,0.00019287,2]
[373486077,1753020645324,-480.0,0.00019287,2]
[373486079,1753020645334,-480.0,0.00019287,2]
[373486081,1753020645344,-480.0,0.00019287,2]
[373486083,1753020645353,-480.0,0.00019287,2]
[373486085,1753020645363,-480.0,0.00019287,2]
[373486087,1753020645372,-480.0,0.00019287,2]
[373486089,1753020645381,-480.0,0.00019287,2]
[373486091,1753020645390,-480.0,0.00019287,2]
[373486093,1753020645399,-480.0,0.00019287,2]
[373486095,1753020645408,-521.25,0.00019287,2]
[373486097,1753020645418,-480.0,0.00019287,2]
[373486099,1753020645427,-480.0,0.00019287,2]
[373486101,1753020645437,-480.0,0.00019287,2]
[373486103,1753020645446,-480.0,0.00019287,2]
[373486105,1753020645456,-480.0,0.00019287,2]
[373486107,1753020645465,-480.0,0.00019287,2]
[373486108,1753020645474,-557.67,0.00019287,2]
[373486110,1753020645483,-480.0,0.00019287,2]
[373486113,1753020645492,-480.0,0.00019287,2]
[373486114,1753020645501,-480.0,0.00019287,2]
[373486117,1753020645511,-696.54,0.00019287,2]
[373486119,1753020645520,-480.0,0.00019287,2]
[373486121,1753020645530,-480.0,0.00019287,2]
[373486123,1753020645539,-480.0,0.00019287,2]
[373486125,1753020645548,-680.58,0.00019287,2]
[373486127,1753020645558,-480.0,0.00019287,2]
[373486129,1753020645567,-480.0,0.00019287,2]
[373486131,1753020645576,-480.0,0.00019287,2]
[373486133,1753020645586,-480.0,0.00019287,2]
[373486135,1753020645595,-480.0,0.00019287,2]
[373486137,1753020645604,-296.88,0.00019287,2]
[373486139,1753020645613,-480.0,0.00019287,2]
[373486141,1753020645622,-533.34,0.00019287,2]
[373486143,1753020645632,-933.08,0.00019287,2]
[373486144,1753020645641,-480.0,0.00019287,2]
[373486145,1753020645650,-480.0,0.00019287,2]
[373486146,1753020645660,-480.0,0.00019287,2]
[373486147,1753020645671,-480.0,0.00019287,2]
[373486148,1753020645681,-480.0,0.00019287,2]
[373486149,1753020645690,-480.0,0.00019287,2]
[373486150,1753020645700,-590.03,0.00019287,2]
[373486151,1753020645709,-480.0,0.00019287,2]
[373486153,1753020645719,-300.0,0.00019287,2]
[373486154,1753020645729,-480.0,0.00019287,2]
[373486157,1753020645739,-480.0,0.00019287,2]
[373486159,1753020645749,-480.0,0.00019287,2]
[373486161,1753020645761,-480.0,0.00019287,2]
[373486163,1753020645770,-480.0,0.00019287,2]
[373486165,1753020645780,-9205.96,0.00019287,2]
[373486167,1753020645790,-1000.0,0.00019287,2]
[373486169,1753020645799,-480.0,0.00019287,2]
[373486171,1753020645808,-497.52,0.00019287,2]
[373486173,1753020645818,-480.0,0.00019287,2]
[373486175,1753020645829,-480.0,0.00019287,2]
[373486176,1753020645839,-480.0,0.00019287,2]
[373486177,1753020645848,-480.0,0.00019287,2]
[373486179,1753020645857,-792.62,0.00019287,2]
[373486181,1753020645867,-480.0,0.00019287,2]
[373486183,1753020645876,-480.0,0.00019287,2]
[373486185,1753020645886,-627.46,0.00019287,2]
[373486187,1753020645895,-480.0,0.00019287,2]
[373486189,1753020645905,-480.0,0.00019287,2]
[373486191,1753020645915,-480.0,0.00019287,2]
[373486193,1753020645925,-480.0,0.00019287,2]
[373486195,1753020645934,-480.0,0.00019287,2]
[373486197,1753020645943,-480.0,0.00019287,2]
[373486198,1753020645952,-480.0,0.00019287,2]
[373486200,1753020645962,-480.0,0.00019287,2]
[373486202,1753020645972,-513.14,0.00019287,2]
[373486204,1753020645983,-480.0,0.00019287,2]
[373486206,1753020645992,-480.0,0.00019287,2]
[373486208,1753020646001,-480.0,0.00019287,2]
[373486210,1753020646010,-480.0,0.00019287,2]
[373486212,1753020646019,-480.0,0.00019287,2]
[373486214,1753020646029,-480.0,0.00019287,2]
[373486216,1753020646038,-959.64,0.00019287,2]
[373486218,1753020646048,-480.0,0.00019287,2]
[373486220,1753020646059,-480.0,0.00019287,2]
[373486222,1753020646068,-480.0,0.00019287,2]
[373486224,1753020646078,-480.0,0.00019287,2]
[373486226,1753020646087,-480.0,0.00019287,2]
[373486228,1753020646097,-480.0,0.00019287,2]
[373486230,1753020646107,-571.32,0.00019287,2]
[373486232,1753020646116,-380.19590201,0.00019287,2]
[373486234,1753020646126,-732.39,0.00019287,2]
[373486236,1753020646135,-480.0,0.00019287,2]
[373486238,1753020646144,-480.0,0.00019287,2]
[373486240,1753020646154,-685.3,0.00019287,2]
[373486242,1753020646165,-480.0,0.00019287,2]
[373486244,1753020646174,-480.0,0.00019287,2]
[373486246,1753020646184,-480.0,0.00019287,2]
[373486248,1753020646193,-480.0,0.00019287,2]
[373486250,1753020646203,-480.0,0.00019287,2]
[373486252,1753020646212,-480.0,0.00019287,2]
[373486254,1753020646222,-480.0,0.00019287,2]
[373486256,1753020646232,-480.0,0.00019287,2]
[373486258,1753020646241,-480.0,0.00019287,2]
[373486260,1753020646250,-480.0,0.00019287,2]
[373486262,1753020646260,-1950.98,0.00019287,2]
[373486264,1753020646269,-480.0,0.00019287,2]
[373486266,1753020646279,-480.0,0.00019287,2]
[373486268,1753020646288,-480.0,0.00019287,2]
[373486270,1753020646297,-480.0,0.00019287,2]
[373486272,1753020646307,-480.0,0.00019287,2]
[373486274,1753020646316,-480.0,0.00019287,2]
[373486276,1753020646325,-480.0,0.00019287,2]
[373486278,1753020646335,-480.0,0.00019287,2]
[373486280,1753020646344,-480.0,0.00019287,2]
[373486282,1753020646354,-291.3,0.00019287,2]
[373486284,1753020646363,-480.0,0.00019287,2]
[373486286,1753020646373,-480.0,0.00019287,2]
[373486288,1753020646383,-963.17,0.00019287,2]
[373486290,1753020646393,-599.44,0.00019287,2]
[373486292,1753020646402,-480.0,0.00019287,2]
[373486294,1753020646412,-509.68,0.00019287,2]
[373486296,1753020646422,-480.0,0.00019287,2]
[373486298,1753020646432,-480.0,0.00019287,2]
[373486300,1753020646441,-387.0,0.00019287,2]
[373486302,1753020646451,-480.0,0.00019287,2]
[373486304,1753020646461,-480.0,0.00019287,2]
[373486305,1753020646470,-480.0,0.00019287,2]
[373486307,1753020646480,-661.53,0.00019287,2]
[373486309,1753020646490,-421.56,0.00019287,2]
[373486311,1753020646500,-480.0,0.00019287,2]
[373486313,1753020646510,-480.0,0.00019287,2]
[373486315,1753020646519,-480.0,0.00019287,2]
[373486317,1753020646529,-480.0,0.00019287,2]
[373486319,1753020646539,-480.0,0.00019287,2]
[373486321,1753020646548,-480.0,0.00019287,2]
[373486323,1753020646558,-480.0,0.00019287,2]
[373486325,1753020646567,-480.0,0.00019287,2]
[373486327,1753020646577,-480.0,0.00019287,2]
[373486329,1753020646587,-480.0,0.00019287,2]
[373486331,1753020646596,-630.06,0.00019287,2]
[373486333,1753020646606,-480.0,0.00019287,2]
[373486335,1753020646615,-480.0,0.00019287,2]
[373486337,1753020646625,-896.46,0.00019287,2]
[373486339,1753020646634,-480.0,0.00019287,2]
[373486341,1753020646644,-575.62,0.00019287,2]
[373486343,1753020646654,-480.0,0.00019287,2]
[373486345,1753020646664,-532.75,0.00019287,2]
[373486347,1753020646674,-480.0,0.00019287,2]
[373486349,1753020646684,-773.71,0.00019287,2]
[373486351,1753020646694,-1550.6,0.00019287,2]
[373486353,1753020646703,-480.0,0.00019287,2]
[373486355,1753020646713,-480.0,0.00019287,2]
[373486357,1753020646723,-480.0,0.00019287,2]
[373486359,1753020646732,-480.0,0.00019287,2]
[373486361,1753020646742,-480.0,0.00019287,2]
[373486363,1753020646752,-480.0,0.00019287,2]
[373486365,1753020646765,-480.0,0.00019287,2]
[373486367,1753020646777,-480.0,0.00019287,2]
[373486369,1753020646786,-192.5,0.00019287,2]
[373486371,1753020646795,-480.0,0.00019287,2]
[373486373,1753020646805,-480.0,0.00019287,2]
[373486375,1753020646815,-1928.47,0.00019287,2]
[373486377,1753020646824,-480.0,0.00019287,2]
[373486379,1753020646834,-480.0,0.00019287,2]
[373486381,1753020646843,-480.0,0.00019287,2]
[373486383,1753020646853,-480.0,0.00019287,2]
[373486385,1753020646862,-480.0,0.00019287,2]
[373486387,1753020646872,-480.0,0.00019287,2]
[373486389,1753020646881,-517.17,0.00019287,2]
[373486391,1753020646895,-480.0,0.00019287,2]
[373486393,1753020646905,-480.0,0.00019287,2]
[373486395,1753020646915,-480.0,0.00019287,2]
[373486397,1753020646925,-480.0,0.00019287,2]
[373486399,1753020646934,-480.0,0.00019287,2]
[373486401,1753020646944,-480.0,0.00019287,2]
[373486403,1753020646953,-480.0,0.00019287,2]
[373486405,1753020646963,-480.0,0.00019287,2]
[373486406,1753020646973,-587.63,0.00019287,2]
[373486408,1753020646983,-876.78,0.00019287,2]
[373486410,1753020646993,-480.0,0.00019287,2]
[373486412,1753020647002,-480.0,0.00019287,2]
[373486414,1753020647012,-480.0,0.00019287,2]
[373486423,1753020647086,-480.0,0.00019287,2]
[373486425,1753020647096,-480.0,0.00019287,2]
[373486427,1753020647105,-480.0,0.00019287,2]
[373486429,1753020647115,-480.0,0.00019287,2]
[373486431,1753020647124,-480.0,0.00019287,2]
[373486433,1753020647133,-480.0,0.00019287,2]
[373486435,1753020647143,-480.0,0.00019287,2]
[373486437,1753020647152,-480.0,0.00019287,2]
[373486439,1753020647161,-480.0,0.00019287,2]
[373486441,1753020647171,-480.0,0.00019287,2]
[373486443,1753020647180,-480.0,0.00019287,2]
[373486445,1753020647189,-480.0,0.00019287,2]
[373486447,1753020647199,-169.36,0.00019287,2]
[373486449,1753020647208,-480.0,0.00019287,2]
[373486451,1753020647218,-480.0,0.00019287,2]
[373486453,1753020647227,-544.99,0.00019287,2]
[373486455,1753020647236,-480.0,0.00019287,2]
[373486457,1753020647246,-480.0,0.00019287,2]
[373486459,1753020647255,-480.0,0.00019287,2]
[373486461,1753020647264,-480.0,0.00019287,2]
[373486462,1753020647273,-2603.58,0.00019287,2]
[373486465,1753020647284,-480.0,0.00019287,2]
[373486466,1753020647294,-480.0,0.00019287,2]
[373486468,1753020647303,-2585.8,0.00019287,2]
[373486471,1753020647313,-635.55,0.00019287,2]
[373486473,1753020647322,-560.5,0.00019287,2]
[373486475,1753020647331,-480.0,0.00019287,2]
[373486476,1753020647341,-480.0,0.00019287,2]
[373486478,1753020647350,-480.0,0.00019287,2]
[373486480,1753020647359,-480.0,0.00019287,2]
[373486482,1753020647367,-480.0,0.00019287,2]
[373486484,1753020647377,-1155.26,0.00019287,2]
[373486486,1753020647386,-480.0,0.00019287,2]
[373486488,1753020647395,-480.0,0.00019287,2]
[373486490,1753020647404,-558.31,0.00019287,2]
[373486492,1753020647413,-480.0,0.00019287,2]
[373486494,1753020647422,-480.0,0.00019287,2]
[373486496,1753020647431,-480.0,0.00019287,2]
[373486497,1753020647440,-444.04,0.00019287,2]
[373486498,1753020647450,-480.0,0.00019287,2]